[Event "Titled Tuesday Blitz August 15 Early 2023"]
[White "Huynh, Lam Binh Nguyen"]
[Black "Mackster23"]
[WhiteFideId "12401633"]
[WhiteElo "2294"]
[BlackElo "2488"]
[Result "1-0"]
[Round "4"]
[TimeControl "180+1"]
[Date "2023.08.15"]
[WhiteClock "0:00:32"]
[BlackClock "0:00:00"]
[Board "169"]

1. d4 {[%clk 0:03:00]}  Nf6 {[%clk 0:02:48]} 2. Bf4 {[%clk 0:02:59]}  d5 {[%clk 0:02:42]} 3. e3 {[%clk 0:02:55]}  c5 {[%clk 0:02:41]} 4. Nd2 {[%clk 0:02:49]}  Nc6 {[%clk 0:02:39]} 5. c3 {[%clk 0:02:48]}  e6 {[%clk 0:02:25]} 6. Ngf3 {[%clk 0:02:44]}  cxd4 {[%clk 0:02:24]} 7. exd4 {[%clk 0:02:43]}  Nh5 {[%clk 0:02:24]} 8. Bg5 {[%clk 0:02:42]}  Be7 {[%clk 0:02:20]} 9. Be3 {[%clk 0:02:40]}  Bd6 {[%clk 0:02:19]} 10. Bd3 {[%clk 0:02:38]}  Nf4 {[%clk 0:02:19]} 11. Bxf4 {[%clk 0:02:36]}  Bxf4 {[%clk 0:02:19]} 12. O-O {[%clk 0:02:37]}  Bc7 {[%clk 0:02:04]} 13. Qe2 {[%clk 0:02:34]}  Qd6 {[%clk 0:02:02]} 14. Rfe1 {[%clk 0:02:31]}  Bd7 {[%clk 0:02:00]} 15. g3 {[%clk 0:02:24]}  O-O-O {[%clk 0:01:57]} 16. b4 {[%clk 0:02:23]}  f6 {[%clk 0:01:53]} 17. b5 {[%clk 0:02:17]}  Ne7 {[%clk 0:01:53]} 18. Nb3 {[%clk 0:02:12]}  b6 {[%clk 0:01:32]} 19. a4 {[%clk 0:02:11]}  h5 {[%clk 0:00:56]} 20. Ne5 {[%clk 0:02:02]}  fxe5 {[%clk 0:00:44]} 21. dxe5 {[%clk 0:02:02]}  Qxe5 {[%clk 0:00:45]} 22. Qxe5 {[%clk 0:02:02]}  Bxe5 {[%clk 0:00:46]} 23. Rxe5 {[%clk 0:02:02]}  h4 {[%clk 0:00:41]} 24. g4 {[%clk 0:02:01]}  Rhf8 {[%clk 0:00:39]} 25. Nd4 {[%clk 0:01:57]}  Rf4 {[%clk 0:00:28]} 26. f3 {[%clk 0:01:55]}  Rdf8 {[%clk 0:00:26]} 27. Kg2 {[%clk 0:01:54]}  Kd8 {[%clk 0:00:15]} 28. h3 {[%clk 0:01:53]}  Nc8 {[%clk 0:00:14]} 29. a5 {[%clk 0:01:51]}  Kc7 {[%clk 0:00:13]} 30. axb6+ {[%clk 0:01:51]}  axb6 {[%clk 0:00:14]} 31. Ra8 {[%clk 0:01:46]}  Kb7 {[%clk 0:00:14]} 32. Ra2 {[%clk 0:01:42]}  Nd6 {[%clk 0:00:14]} 33. Be2 {[%clk 0:01:36]}  Rc8 {[%clk 0:00:13]} 34. Nxe6 {[%clk 0:01:25]}  Bxe6 {[%clk 0:00:11]} 35. Rxe6 {[%clk 0:01:26]}  Nc4 {[%clk 0:00:11]} 36. Re7+ {[%clk 0:01:26]}  Rc7 {[%clk 0:00:10]} 37. Ra7+ {[%clk 0:01:24]}  Kxa7 {[%clk 0:00:10]} 38. Rxc7+ {[%clk 0:01:24]}  Kb8 {[%clk 0:00:11]} 39. Rxg7 {[%clk 0:01:25]}  Nd6 {[%clk 0:00:08]} 40. Kf2 {[%clk 0:01:21]}  d4 {[%clk 0:00:07]} 41. cxd4 {[%clk 0:01:21]}  Rxd4 {[%clk 0:00:08]} 42. Ke3 {[%clk 0:01:20]}  Rb4 {[%clk 0:00:08]} 43. Rg5 {[%clk 0:01:20]}  Kc7 {[%clk 0:00:08]} 44. Rd5 {[%clk 0:01:18]}  Rb3+ {[%clk 0:00:06]} 45. Bd3 {[%clk 0:01:16]}  Rb2 {[%clk 0:00:07]} 46. Rh5 {[%clk 0:01:13]}  Rb3 {[%clk 0:00:05]} 47. Rh7+ {[%clk 0:01:11]}  Kd8 {[%clk 0:00:05]} 48. f4 {[%clk 0:01:11]}  Nxb5 {[%clk 0:00:05]} 49. Rxh4 {[%clk 0:01:11]}  Nc7 {[%clk 0:00:04]} 50. Rh5 {[%clk 0:01:10]}  Ne6 {[%clk 0:00:04]} 51. Rd5+ {[%clk 0:00:59]}  Ke7 {[%clk 0:00:04]} 52. f5 {[%clk 0:00:59]}  Nc5 {[%clk 0:00:04]} 53. h4 {[%clk 0:00:55]}  Rb4 {[%clk 0:00:03]} 54. Rd4 {[%clk 0:00:53]}  Rb2 {[%clk 0:00:03]} 55. g5 {[%clk 0:00:52]}  Rh2 {[%clk 0:00:03]} 56. Bc4 {[%clk 0:00:49]}  Rh3+ {[%clk 0:00:02]} 57. Kf2 {[%clk 0:00:47]}  Nd7 {[%clk 0:00:01]} 58. Re4+ {[%clk 0:00:44]}  Kf8 {[%clk 0:00:01]} 59. f6 {[%clk 0:00:43]}  Nc5 {[%clk 0:00:02]} 60. Rd4 {[%clk 0:00:41]}  Ke8 {[%clk 0:00:02]} 61. f7+ {[%clk 0:00:41]}  Ke7 {[%clk 0:00:02]} 62. g6 {[%clk 0:00:35]}  Rh2+ {[%clk 0:00:02]} 63. Kg3 {[%clk 0:00:34]}  Rh1 {[%clk 0:00:02]} 64. Kg2 {[%clk 0:00:33]}  Re1 {[%clk 0:00:00]} 65. g7 {[%clk 0:00:32]} 1-0


[Site "https://www.chess.com"]

[Event "Titled Tuesday Blitz August 15 Early 2023"]
[White "Eidelman, Gabriel"]
[Black "Diaz, Fernando"]
[WhiteFideId "30910544"]
[BlackFideId "3701255"]
[WhiteElo "2487"]
[BlackElo "2287"]
[Result "1-0"]
[Round "4"]
[TimeControl "180+1"]
[Date "2023.08.15"]
[WhiteClock "0:00:05"]
[BlackClock "0:00:03"]
[Board "171"]

1. e4 {[%clk 0:03:00]}  e6 {[%clk 0:03:00]} 2. Nc3 {[%clk 0:03:00]}  d5 {[%clk 0:03:01]} 3. exd5 {[%clk 0:03:00]}  exd5 {[%clk 0:03:00]} 4. d4 {[%clk 0:03:00]}  c6 {[%clk 0:03:01]} 5. Nf3 {[%clk 0:03:00]}  Bd6 {[%clk 0:03:02]} 6. Bd3 {[%clk 0:03:00]}  Ne7 {[%clk 0:03:03]} 7. h3 {[%clk 0:03:00]}  O-O {[%clk 0:03:04]} 8. O-O {[%clk 0:02:58]}  Bf5 {[%clk 0:03:04]} 9. Bg5 {[%clk 0:02:56]}  f6 {[%clk 0:03:03]} 10. Bd2 {[%clk 0:02:54]}  Bxd3 {[%clk 0:03:04]} 11. cxd3 {[%clk 0:02:54]}  Na6 {[%clk 0:03:03]} 12. Re1 {[%clk 0:02:52]}  Qc7 {[%clk 0:03:00]} 13. Re6 {[%clk 0:02:50]}  Rae8 {[%clk 0:02:59]} 14. Qe2 {[%clk 0:02:50]}  Qd7 {[%clk 0:02:59]} 15. Re1 {[%clk 0:02:50]}  Nc7 {[%clk 0:02:58]} 16. Re3 {[%clk 0:02:42]}  Nf5 {[%clk 0:02:57]} 17. Rxe8 {[%clk 0:02:40]}  Rxe8 {[%clk 0:02:58]} 18. Qd1 {[%clk 0:02:35]}  Rxe1+ {[%clk 0:02:59]} 19. Qxe1 {[%clk 0:02:36]}  Qe6 {[%clk 0:02:58]} 20. Qxe6+ {[%clk 0:02:34]}  Nxe6 {[%clk 0:02:56]} 21. Be3 {[%clk 0:02:35]}  Bc7 {[%clk 0:02:44]} 22. g4 {[%clk 0:02:31]}  Ne7 {[%clk 0:02:27]} 23. h4 {[%clk 0:02:27]}  Ng6 {[%clk 0:02:22]} 24. Ne2 {[%clk 0:02:24]}  Kf7 {[%clk 0:01:51]} 25. Kf1 {[%clk 0:02:10]}  Ngf4 {[%clk 0:01:47]} 26. Nxf4 {[%clk 0:02:08]}  Nxf4 {[%clk 0:01:42]} 27. Ne1 {[%clk 0:02:02]}  a5 {[%clk 0:01:21]} 28. a4 {[%clk 0:01:46]}  Ng6 {[%clk 0:01:14]} 29. Ng2 {[%clk 0:01:45]}  Nf8 {[%clk 0:01:11]} 30. Ke2 {[%clk 0:01:41]}  Ne6 {[%clk 0:01:11]} 31. Kd2 {[%clk 0:01:36]}  b5 {[%clk 0:00:57]} 32. b3 {[%clk 0:01:35]}  g6 {[%clk 0:00:56]} 33. Ne1 {[%clk 0:00:56]}  f5 {[%clk 0:00:52]} 34. gxf5 {[%clk 0:00:55]}  gxf5 {[%clk 0:00:52]} 35. f3 {[%clk 0:00:34]}  Kg6 {[%clk 0:00:41]} 36. Bf2 {[%clk 0:00:24]}  Bb6 {[%clk 0:00:33]} 37. Nc2 {[%clk 0:00:23]}  Kh5 {[%clk 0:00:32]} 38. Kc3 {[%clk 0:00:05]}  Bd8 {[%clk 0:00:25]} 39. axb5 {[%clk 0:00:03]}  cxb5 {[%clk 0:00:25]} 40. b4 {[%clk 0:00:04]}  a4 {[%clk 0:00:25]} 41. Na3 {[%clk 0:00:04]}  Nc7 {[%clk 0:00:24]} 42. Bg3 {[%clk 0:00:05]}  Na6 {[%clk 0:00:04]} 43. Nxb5 {[%clk 0:00:04]}  Be7 {[%clk 0:00:05]} 44. Nd6 {[%clk 0:00:03]}  f4 {[%clk 0:00:04]} 45. Bxf4 {[%clk 0:00:03]}  Kxh4 {[%clk 0:00:04]} 46. b5 {[%clk 0:00:03]}  Nb8 {[%clk 0:00:04]} 47. Nf5+ {[%clk 0:00:03]}  Kh3 {[%clk 0:00:03]} 48. Nxe7 {[%clk 0:00:04]}  Nd7 {[%clk 0:00:04]} 49. Nxd5 {[%clk 0:00:04]}  Kg2 {[%clk 0:00:02]} 50. b6 {[%clk 0:00:04]}  Nxb6 {[%clk 0:00:02]} 51. Nxb6 {[%clk 0:00:04]}  Kxf3 {[%clk 0:00:03]} 52. Bd6 {[%clk 0:00:04]}  h5 {[%clk 0:00:04]} 53. Kb4 {[%clk 0:00:03]}  h4 {[%clk 0:00:04]} 54. Kxa4 {[%clk 0:00:04]}  Ke3 {[%clk 0:00:05]} 55. Be5 {[%clk 0:00:02]}  Kxd3 {[%clk 0:00:05]} 56. d5 {[%clk 0:00:02]}  Ke4 {[%clk 0:00:06]} 57. d6 {[%clk 0:00:03]}  Kxe5 {[%clk 0:00:07]} 58. d7 {[%clk 0:00:04]}  h3 {[%clk 0:00:07]} 59. d8=Q {[%clk 0:00:04]}  h2 {[%clk 0:00:08]} 60. Qh8+ {[%clk 0:00:05]}  Kf5 {[%clk 0:00:03]} 61. Qxh2 {[%clk 0:00:05]} 1-0


[Site "https://www.chess.com"]

[Event "Titled Tuesday Blitz August 15 Early 2023"]
[White "Koutlas, Nikolaos"]
[Black "AndresDelgado77"]
[WhiteFideId "25827138"]
[WhiteElo "2486"]
[BlackElo "2271"]
[Result "1-0"]
[Round "4"]
[TimeControl "180+1"]
[Date "2023.08.15"]
[WhiteClock "0:01:21"]
[BlackClock "0:00:00"]
[Board "172"]

1. Nf3 {[%clk 0:02:57]}  Nf6 {[%clk 0:02:56]} 2. g3 {[%clk 0:02:52]}  d5 {[%clk 0:02:54]} 3. c4 {[%clk 0:02:50]}  c6 {[%clk 0:02:51]} 4. Bg2 {[%clk 0:02:43]}  Bf5 {[%clk 0:02:47]} 5. O-O {[%clk 0:02:43]}  e6 {[%clk 0:02:45]} 6. b3 {[%clk 0:02:41]}  h6 {[%clk 0:02:43]} 7. Bb2 {[%clk 0:02:41]}  Nbd7 {[%clk 0:02:39]} 8. d3 {[%clk 0:02:41]}  Be7 {[%clk 0:02:34]} 9. Nbd2 {[%clk 0:02:40]}  O-O {[%clk 0:02:33]} 10. Rc1 {[%clk 0:02:41]}  a5 {[%clk 0:02:31]} 11. a4 {[%clk 0:02:39]}  Bh7 {[%clk 0:02:23]} 12. h3 {[%clk 0:02:39]}  Rc8 {[%clk 0:02:17]} 13. Ne5 {[%clk 0:02:27]}  Nxe5 {[%clk 0:02:16]} 14. Bxe5 {[%clk 0:02:27]}  Nd7 {[%clk 0:02:08]} 15. Bc3 {[%clk 0:02:26]}  Bb4 {[%clk 0:02:01]} 16. Nf3 {[%clk 0:02:25]}  Qb6 {[%clk 0:01:54]} 17. Qd2 {[%clk 0:02:15]}  Nc5 {[%clk 0:01:50]} 18. Rb1 {[%clk 0:02:12]}  Rfd8 {[%clk 0:01:39]} 19. cxd5 {[%clk 0:02:10]}  cxd5 {[%clk 0:01:37]} 20. Bxb4 {[%clk 0:02:09]}  Qxb4 {[%clk 0:01:28]} 21. Qxb4 {[%clk 0:02:08]}  axb4 {[%clk 0:01:29]} 22. Rfc1 {[%clk 0:02:07]}  Na6 {[%clk 0:01:22]} 23. Nd4 {[%clk 0:02:03]}  Rc3 {[%clk 0:01:19]} 24. Nb5 {[%clk 0:02:03]}  Rdc8 {[%clk 0:01:08]} 25. Nxc3 {[%clk 0:02:00]}  bxc3 {[%clk 0:01:08]} 26. b4 {[%clk 0:02:00]}  b6 {[%clk 0:00:59]} 27. Kf1 {[%clk 0:01:58]}  Rc7 {[%clk 0:00:57]} 28. f4 {[%clk 0:01:45]}  d4 {[%clk 0:00:51]} 29. Ke1 {[%clk 0:01:44]}  f6 {[%clk 0:00:50]} 30. Kd1 {[%clk 0:01:42]}  Kf7 {[%clk 0:00:49]} 31. Kc2 {[%clk 0:01:41]}  Ke7 {[%clk 0:00:49]} 32. Re1 {[%clk 0:01:37]}  Kd6 {[%clk 0:00:47]} 33. e3 {[%clk 0:01:35]}  e5 {[%clk 0:00:47]} 34. exd4 {[%clk 0:01:34]}  exd4 {[%clk 0:00:47]} 35. Be4 {[%clk 0:01:33]}  Bg8 {[%clk 0:00:46]} 36. Bf3 {[%clk 0:01:29]}  Ba2 {[%clk 0:00:45]} 37. Re4 {[%clk 0:01:23]}  Bxb1+ {[%clk 0:00:39]} 38. Kxb1 {[%clk 0:01:22]}  Nxb4 {[%clk 0:00:13]} 39. Rxd4+ {[%clk 0:01:20]}  Kc5 {[%clk 0:00:13]} 40. Rc4+ {[%clk 0:01:19]}  Kd6 {[%clk 0:00:12]} 41. Rxb4 {[%clk 0:01:20]}  Kc5 {[%clk 0:00:10]} 42. Rc4+ {[%clk 0:01:19]}  Kd6 {[%clk 0:00:10]} 43. Rxc7 {[%clk 0:01:20]}  Kxc7 {[%clk 0:00:00]} 44. Kc2 {[%clk 0:01:21]} 1-0


[Site "https://www.chess.com"]

[Event "Titled Tuesday Blitz August 15 Early 2023"]
[White "Yuruultei Batbaatar"]
[Black "Ankerst, Mihael"]
[WhiteFideId "4905962"]
[BlackFideId "14602369"]
[WhiteElo "2258"]
[BlackElo "2477"]
[Result "0-1"]
[Round "4"]
[TimeControl "180+1"]
[Date "2023.08.15"]
[WhiteClock "0:00:00"]
[BlackClock "0:01:19"]
[Board "176"]

1. d4 {[%clk 0:02:59]}  Nf6 {[%clk 0:02:58]} 2. c4 {[%clk 0:03:00]}  g6 {[%clk 0:02:58]} 3. Nc3 {[%clk 0:02:58]}  Bg7 {[%clk 0:02:58]} 4. e4 {[%clk 0:02:59]}  d6 {[%clk 0:02:58]} 5. Nf3 {[%clk 0:02:59]}  O-O {[%clk 0:02:57]} 6. Be2 {[%clk 0:03:00]}  Na6 {[%clk 0:02:57]} 7. O-O {[%clk 0:03:00]}  e5 {[%clk 0:02:57]} 8. Be3 {[%clk 0:02:59]}  c6 {[%clk 0:02:57]} 9. d5 {[%clk 0:02:56]}  Ng4 {[%clk 0:02:57]} 10. Bg5 {[%clk 0:02:55]}  f6 {[%clk 0:02:57]} 11. Bd2 {[%clk 0:02:53]}  f5 {[%clk 0:02:57]} 12. Ne1 {[%clk 0:02:21]}  Nf6 {[%clk 0:02:56]} 13. f3 {[%clk 0:02:18]}  Qb6+ {[%clk 0:02:55]} 14. Kh1 {[%clk 0:02:16]}  Qxb2 {[%clk 0:02:54]} 15. Rb1 {[%clk 0:02:16]}  Qa3 {[%clk 0:02:53]} 16. dxc6 {[%clk 0:01:41]}  bxc6 {[%clk 0:02:52]} 17. Nb5 {[%clk 0:01:07]}  cxb5 {[%clk 0:02:48]} 18. Nc2 {[%clk 0:01:05]}  Qa4 {[%clk 0:02:47]} 19. cxb5 {[%clk 0:01:05]}  Nc5 {[%clk 0:02:41]} 20. Bb4 {[%clk 0:00:32]}  Be6 {[%clk 0:02:40]} 21. Qxd6 {[%clk 0:00:26]}  Qxc2 {[%clk 0:02:39]} 22. Bxc5 {[%clk 0:00:25]}  Bxa2 {[%clk 0:02:33]} 23. Bd3 {[%clk 0:00:18]}  Qa4 {[%clk 0:01:32]} 24. Rb4 {[%clk 0:00:11]}  Qa5 {[%clk 0:01:29]} 25. Ra1 {[%clk 0:00:10]}  Rfd8 {[%clk 0:01:29]} 26. Qxe5 {[%clk 0:00:03]}  Rxd3 {[%clk 0:01:26]} 27. exf5 {[%clk 0:00:02]}  Rad8 {[%clk 0:01:24]} 28. Be7 {[%clk 0:00:00]}  Rd1+ {[%clk 0:01:19]} 0-1


[Site "https://www.chess.com"]

[Event "Titled Tuesday Blitz August 15 Early 2023"]
[White "Devaev, Alexander"]
[Black "bteillet"]
[WhiteFideId "4169395"]
[WhiteElo "2475"]
[BlackElo "2242"]
[Result "0-1"]
[Round "4"]
[TimeControl "180+1"]
[Date "2023.08.15"]
[WhiteClock "0:02:13"]
[BlackClock "0:02:31"]
[Board "179"]

1. d4 {[%clk 0:03:00]}  d6 {[%clk 0:03:00]} 2. c4 {[%clk 0:03:00]}  Nf6 {[%clk 0:03:00]} 3. Nc3 {[%clk 0:03:01]}  g6 {[%clk 0:02:59]} 4. e4 {[%clk 0:03:01]}  Bg7 {[%clk 0:02:56]} 5. Nf3 {[%clk 0:03:02]}  O-O {[%clk 0:02:52]} 6. Ng1 {[%clk 0:03:03]}  e5 {[%clk 0:02:50]} 7. Nf3 {[%clk 0:03:04]}  exd4 {[%clk 0:02:50]} 8. h3 {[%clk 0:03:05]}  dxc3 {[%clk 0:02:49]} 9. bxc3 {[%clk 0:03:03]}  Nc6 {[%clk 0:02:49]} 10. Bd3 {[%clk 0:03:03]}  Re8 {[%clk 0:02:49]} 11. O-O {[%clk 0:03:01]}  Nxe4 {[%clk 0:02:47]} 12. Qc2 {[%clk 0:03:01]}  Nxc3 {[%clk 0:02:44]} 13. Bb2 {[%clk 0:03:02]}  Nb4 {[%clk 0:02:39]} 14. Qd2 {[%clk 0:03:00]}  Nxd3 {[%clk 0:02:35]} 15. Bxc3 {[%clk 0:02:57]}  Nc5 {[%clk 0:02:31]} 16. Nd4 {[%clk 0:02:13]}  Ne4 {[%clk 0:02:31]} 0-1


[Site "https://www.chess.com"]

[Event "Titled Tuesday Blitz August 15 Early 2023"]
[White "favesaul"]
[Black "Zaichenko, Daria"]
[BlackFideId "4197453"]
[WhiteElo "2470"]
[BlackElo "2216"]
[Result "0-1"]
[Round "4"]
[TimeControl "180+1"]
[Date "2023.08.15"]
[WhiteClock "0:00:00"]
[BlackClock "0:00:05"]
[Board "182"]

1. e4 {[%clk 0:02:56]}  c5 {[%clk 0:02:58]} 2. Nf3 {[%clk 0:02:56]}  Nc6 {[%clk 0:02:57]} 3. Nc3 {[%clk 0:02:54]}  Nd4 {[%clk 0:02:53]} 4. Nxd4 {[%clk 0:02:46]}  cxd4 {[%clk 0:02:53]} 5. Ne2 {[%clk 0:02:47]}  e5 {[%clk 0:02:53]} 6. d3 {[%clk 0:02:29]}  d5 {[%clk 0:02:51]} 7. Ng3 {[%clk 0:01:57]}  Nf6 {[%clk 0:02:47]} 8. c3 {[%clk 0:01:42]}  dxe4 {[%clk 0:02:37]} 9. cxd4 {[%clk 0:01:40]}  Qxd4 {[%clk 0:02:32]} 10. a3 {[%clk 0:01:19]}  exd3 {[%clk 0:02:22]} 11. Bxd3 {[%clk 0:01:19]}  Bg4 {[%clk 0:02:20]} 12. Qb3 {[%clk 0:01:16]}  O-O-O {[%clk 0:02:15]} 13. Be2 {[%clk 0:00:57]}  Be6 {[%clk 0:01:46]} 14. Qc2+ {[%clk 0:00:54]}  Qc5 {[%clk 0:01:42]} 15. Qa4 {[%clk 0:00:44]}  Rd4 {[%clk 0:01:33]} 16. Qb5 {[%clk 0:00:30]}  Qxb5 {[%clk 0:01:33]} 17. Bxb5 {[%clk 0:00:31]}  a6 {[%clk 0:01:25]} 18. Be2 {[%clk 0:00:30]}  Be7 {[%clk 0:01:21]} 19. Be3 {[%clk 0:00:30]}  Rd7 {[%clk 0:01:20]} 20. O-O {[%clk 0:00:28]}  Kb8 {[%clk 0:01:14]} 21. f4 {[%clk 0:00:26]}  exf4 {[%clk 0:01:12]} 22. Bxf4+ {[%clk 0:00:27]}  Bd6 {[%clk 0:01:10]} 23. Bg5 {[%clk 0:00:27]}  Be5 {[%clk 0:01:09]} 24. Nf5 {[%clk 0:00:14]}  Bxf5 {[%clk 0:00:38]} 25. Rxf5 {[%clk 0:00:15]}  Bxb2 {[%clk 0:00:37]} 26. Rb1 {[%clk 0:00:15]}  Bd4+ {[%clk 0:00:36]} 27. Kh1 {[%clk 0:00:16]}  Ka7 {[%clk 0:00:35]} 28. h3 {[%clk 0:00:15]}  h6 {[%clk 0:00:33]} 29. Bh4 {[%clk 0:00:09]}  Re8 {[%clk 0:00:26]} 30. Bf3 {[%clk 0:00:09]}  Bb6 {[%clk 0:00:16]} 31. a4 {[%clk 0:00:09]}  Re6 {[%clk 0:00:08]} 32. a5 {[%clk 0:00:08]}  Be3 {[%clk 0:00:07]} 33. Bxf6 {[%clk 0:00:02]}  Rxf6 {[%clk 0:00:06]} 34. Re5 {[%clk 0:00:01]}  Re6 {[%clk 0:00:06]} 35. Rf5 {[%clk 0:00:02]}  f6 {[%clk 0:00:05]} 36. Kh2 {[%clk 0:00:01]}  Bd4 {[%clk 0:00:05]} 37. Kh1 {[%clk 0:00:00]}  Be5 {[%clk 0:00:05]} 0-1


[Site "https://www.chess.com"]

[Event "Titled Tuesday Blitz August 15 Early 2023"]
[White "Arencibia Monduy, Antonio"]
[Black "Pert, Nina"]
[WhiteFideId "3507939"]
[BlackFideId "456853"]
[WhiteElo "2465"]
[BlackElo "2174"]
[Result "0-1"]
[Round "4"]
[TimeControl "180+1"]
[Date "2023.08.15"]
[WhiteClock "0:00:40"]
[BlackClock "0:00:57"]
[Board "184"]

1. e4 {[%clk 0:03:00]}  c6 {[%clk 0:03:00]} 2. d4 {[%clk 0:03:00]}  d5 {[%clk 0:03:00]} 3. e5 {[%clk 0:03:01]}  Bf5 {[%clk 0:03:01]} 4. Nf3 {[%clk 0:03:01]}  e6 {[%clk 0:02:59]} 5. Nbd2 {[%clk 0:03:00]}  a5 {[%clk 0:02:55]} 6. a4 {[%clk 0:03:00]}  h6 {[%clk 0:02:55]} 7. Nb3 {[%clk 0:02:59]}  Nd7 {[%clk 0:02:48]} 8. Be3 {[%clk 0:02:58]}  Ne7 {[%clk 0:02:46]} 9. Be2 {[%clk 0:02:57]}  g5 {[%clk 0:02:45]} 10. h3 {[%clk 0:02:56]}  Bg7 {[%clk 0:02:41]} 11. c3 {[%clk 0:02:09]}  Qb6 {[%clk 0:02:27]} 12. Ra3 {[%clk 0:02:06]}  Bg6 {[%clk 0:02:21]} 13. Qc1 {[%clk 0:01:55]}  Nf5 {[%clk 0:02:20]} 14. Nbd2 {[%clk 0:01:45]}  Nxe3 {[%clk 0:02:14]} 15. fxe3 {[%clk 0:01:45]}  O-O {[%clk 0:02:01]} 16. O-O {[%clk 0:01:45]}  Rae8 {[%clk 0:01:36]} 17. Rb3 {[%clk 0:01:43]}  Qa7 {[%clk 0:01:35]} 18. c4 {[%clk 0:01:41]}  f6 {[%clk 0:01:32]} 19. exf6 {[%clk 0:01:41]}  Bxf6 {[%clk 0:01:32]} 20. c5 {[%clk 0:01:41]}  Kg7 {[%clk 0:01:26]} 21. Bd3 {[%clk 0:01:40]}  e5 {[%clk 0:01:15]} 22. Bxg6 {[%clk 0:01:40]}  Kxg6 {[%clk 0:01:16]} 23. e4 {[%clk 0:01:18]}  exd4 {[%clk 0:01:08]} 24. exd5 {[%clk 0:01:17]}  Nxc5 {[%clk 0:01:07]} 25. Ra3 {[%clk 0:01:11]}  cxd5 {[%clk 0:01:04]} 26. Nb3 {[%clk 0:00:56]}  Ne4 {[%clk 0:00:59]} 27. Qc2 {[%clk 0:00:40]}  d3+ {[%clk 0:00:57]} 0-1


[Site "https://www.chess.com"]

[Event "Titled Tuesday Blitz August 15 Early 2023"]
[White "Cueto, Jonny"]
[Black "NigelDwarf"]
[WhiteFideId "3300145"]
[WhiteElo "2179"]
[BlackElo "2464"]
[Result "0-1"]
[Round "4"]
[TimeControl "180+1"]
[Date "2023.08.15"]
[WhiteClock "0:00:04"]
[BlackClock "0:00:33"]
[Board "185"]

1. d4 {[%clk 0:02:45]}  Nf6 {[%clk 0:02:58]} 2. Bf4 {[%clk 0:02:46]}  c5 {[%clk 0:02:58]} 3. d5 {[%clk 0:02:46]}  b5 {[%clk 0:02:54]} 4. a4 {[%clk 0:02:43]}  b4 {[%clk 0:02:53]} 5. f3 {[%clk 0:02:44]}  g6 {[%clk 0:02:51]} 6. e4 {[%clk 0:02:44]}  d6 {[%clk 0:02:51]} 7. Nd2 {[%clk 0:02:45]}  Bg7 {[%clk 0:02:51]} 8. Nc4 {[%clk 0:02:33]}  O-O {[%clk 0:02:50]} 9. Bd3 {[%clk 0:02:32]}  Nh5 {[%clk 0:02:46]} 10. Be3 {[%clk 0:02:30]}  e6 {[%clk 0:02:45]} 11. Ne2 {[%clk 0:02:13]}  exd5 {[%clk 0:02:36]} 12. exd5 {[%clk 0:02:14]}  Re8 {[%clk 0:02:34]} 13. Qd2 {[%clk 0:02:06]}  Bb7 {[%clk 0:02:14]} 14. O-O {[%clk 0:01:34]}  Bxd5 {[%clk 0:02:05]} 15. Nf4 {[%clk 0:01:34]}  Bxc4 {[%clk 0:02:00]} 16. Bxc4 {[%clk 0:01:33]}  Rxe3 {[%clk 0:01:53]} 17. Nxh5 {[%clk 0:01:13]}  Bd4 {[%clk 0:01:42]} 18. Kh1 {[%clk 0:00:53]}  gxh5 {[%clk 0:01:39]} 19. Bd5 {[%clk 0:00:50]}  Nd7 {[%clk 0:01:37]} 20. c3 {[%clk 0:00:47]}  bxc3 {[%clk 0:01:28]} 21. bxc3 {[%clk 0:00:47]}  Rxc3 {[%clk 0:01:28]} 22. Bxa8 {[%clk 0:00:44]}  Qxa8 {[%clk 0:01:27]} 23. Qg5+ {[%clk 0:00:44]}  Kh8 {[%clk 0:01:24]} 24. Qxh5 {[%clk 0:00:42]}  Qg8 {[%clk 0:01:08]} 25. Rab1 {[%clk 0:00:33]}  Rc2 {[%clk 0:00:54]} 26. Qh3 {[%clk 0:00:34]}  Ne5 {[%clk 0:00:49]} 27. Rb3 {[%clk 0:00:28]}  c4 {[%clk 0:00:41]} 28. Rb7 {[%clk 0:00:20]}  Nd3 {[%clk 0:00:39]} 29. Qf5 {[%clk 0:00:06]}  Nf2+ {[%clk 0:00:36]} 30. Kg1 {[%clk 0:00:04]}  Ne4+ {[%clk 0:00:35]} 31. Kh1 {[%clk 0:00:04]}  Qxg2# {[%clk 0:00:33]} 0-1


[Site "https://www.chess.com"]

[Event "Titled Tuesday Blitz August 15 Early 2023"]
[White "Tharushi, T H D Niklesha"]
[Black "Molenda, Marcin"]
[WhiteFideId "9918264"]
[BlackFideId "1173065"]
[WhiteElo "2173"]
[BlackElo "2463"]
[Result "0-1"]
[Round "4"]
[TimeControl "180+1"]
[Date "2023.08.15"]
[WhiteClock "0:00:20"]
[BlackClock "0:00:17"]
[Board "186"]

1. e4 {[%clk 0:03:00]}  e6 {[%clk 0:03:00]} 2. d4 {[%clk 0:02:59]}  d5 {[%clk 0:03:01]} 3. Nc3 {[%clk 0:02:59]}  dxe4 {[%clk 0:03:01]} 4. Nxe4 {[%clk 0:03:00]}  Bd7 {[%clk 0:03:01]} 5. Nf3 {[%clk 0:02:59]}  Bc6 {[%clk 0:03:00]} 6. Bd3 {[%clk 0:02:56]}  Nd7 {[%clk 0:03:00]} 7. c3 {[%clk 0:02:55]}  Ngf6 {[%clk 0:03:00]} 8. Qe2 {[%clk 0:02:53]}  Be7 {[%clk 0:02:56]} 9. O-O {[%clk 0:02:49]}  O-O {[%clk 0:02:55]} 10. Re1 {[%clk 0:02:48]}  Nxe4 {[%clk 0:02:53]} 11. Bxe4 {[%clk 0:02:48]}  Bxe4 {[%clk 0:02:54]} 12. Qxe4 {[%clk 0:02:48]}  c6 {[%clk 0:02:50]} 13. Bf4 {[%clk 0:02:47]}  a5 {[%clk 0:02:44]} 14. Ne5 {[%clk 0:02:46]}  a4 {[%clk 0:02:42]} 15. Rad1 {[%clk 0:02:26]}  Ra5 {[%clk 0:02:39]} 16. Rd3 {[%clk 0:02:19]}  Nf6 {[%clk 0:02:34]} 17. Qe2 {[%clk 0:02:15]}  Nd5 {[%clk 0:02:28]} 18. Bd2 {[%clk 0:02:11]}  Bg5 {[%clk 0:02:24]} 19. Rg3 {[%clk 0:02:09]}  Bxd2 {[%clk 0:02:23]} 20. Qxd2 {[%clk 0:02:10]}  Ne7 {[%clk 0:01:55]} 21. Re4 {[%clk 0:01:54]}  Ng6 {[%clk 0:01:55]} 22. f4 {[%clk 0:01:44]}  Qd5 {[%clk 0:01:50]} 23. Qe2 {[%clk 0:01:40]}  Qxa2 {[%clk 0:01:50]} 24. Nd7 {[%clk 0:01:36]}  Rd8 {[%clk 0:01:42]} 25. Nc5 {[%clk 0:01:35]}  Qb1+ {[%clk 0:01:34]} 26. Kf2 {[%clk 0:01:35]}  Rb5 {[%clk 0:01:14]} 27. Nd3 {[%clk 0:01:34]}  Qa1 {[%clk 0:00:53]} 28. c4 {[%clk 0:01:30]}  Rf5 {[%clk 0:00:50]} 29. Rge3 {[%clk 0:01:21]}  h5 {[%clk 0:00:47]} 30. h3 {[%clk 0:01:20]}  h4 {[%clk 0:00:46]} 31. Rf3 {[%clk 0:01:11]}  a3 {[%clk 0:00:46]} 32. bxa3 {[%clk 0:01:10]}  Rxd4 {[%clk 0:00:45]} 33. Nc5 {[%clk 0:01:04]}  Rxc5 {[%clk 0:00:34]} 34. Rfe3 {[%clk 0:00:48]}  Rxe4 {[%clk 0:00:33]} 35. Rxe4 {[%clk 0:00:49]}  Qc3 {[%clk 0:00:23]} 36. Kg1 {[%clk 0:00:40]}  Rf5 {[%clk 0:00:18]} 37. Qf2 {[%clk 0:00:35]}  Qc1+ {[%clk 0:00:17]} 38. Re1 {[%clk 0:00:32]}  Qxf4 {[%clk 0:00:17]} 39. Qa7 {[%clk 0:00:33]}  Qg3 {[%clk 0:00:16]} 40. Re2 {[%clk 0:00:28]}  Nf4 {[%clk 0:00:15]} 41. Rd2 {[%clk 0:00:23]}  Nxh3+ {[%clk 0:00:15]} 42. Kh1 {[%clk 0:00:21]}  Rf1+ {[%clk 0:00:16]} 43. Qg1 {[%clk 0:00:20]}  Rxg1# {[%clk 0:00:17]} 0-1


[Site "https://www.chess.com"]